bitfinex-derivatives/quotes_ETHF0:USTF0_20260303
["timestamp","ask_amount","ask_price","bid_price","bid_amount"]
[1772574540852,2.07141586,1966.0,1965.4,8.68517039]
[1772574541254,2.07141586,1966.0,1965.5,2.01917039]
[1772574541962,2.07141586,1966.5,1965.7,2.01917039]
[1772574542562,2.07141586,1966.3,1965.6,2.01917039]
[1772574543959,2.07141586,1965.9,1965.5,0.00376374]
[1772574544259,2.07141586,1965.9,1965.5,2.02293413]
[1772574545357,2.07141586,1965.9,1965.4,6.666]
[1772574545662,2.07141586,1965.7,1965.2,2.01917039]
[1772574546160,2.07141586,1965.7,1965.1,8.68417039]
[1772574546357,2.07141586,1965.5,1965.1,0.00542156]
[1772574547862,2.07141586,1965.1,1964.4,2.01917039]
[1772574548159,2.07141586,1965.2,1964.5,2.01917039]
[1772574548864,2.07717288,1965.2,1964.5,2.02489777]
[1772574551466,0.00575702,1965.2,1964.5,2.02489777]
[1772574551958,2.07717288,1965.2,1964.5,2.02489777]
[1772574552555,2.07717288,1965.2,1964.7,2.01917039]
[1772574552758,2.07717288,1965.2,1964.6,6.666]
[1772574552966,2.07717288,1965.2,1964.7,2.01917039]
[1772574555872,2.07717288,1965.2,1964.5,0.00572738]
[1772574557371,2.07717288,1965.2,1964.5,2.02489777]
[1772574557566,2.07717288,1965.2,1964.5,0.00572738]
[1772574558269,2.07717288,1965.2,1964.5,2.15298155]
[1772574566178,0.00575702,1965.2,1964.5,2.15298155]
[1772574571187,1.82357073,1965.2,1964.5,2.15298155]
[1772574582792,0.00575702,1965.2,1964.5,2.15298155]
[1772574582985,6.86704847,1965.2,1964.5,2.15298155]
[1772574583190,0.00575702,1965.2,1964.5,2.15298155]
[1772574583390,0.58601772,1965.2,1964.5,2.15298155]
[1772574583590,2.35198528,1965.2,1964.5,2.15298155]
[1772574583795,1.77172458,1965.2,1964.5,2.15298155]
[1772574584089,1.77172458,1965.2,1964.4,2.01431921]
[1772574584295,1.74183407,1965.0,1964.4,2.01431921]
[1772574584495,1.74759109,1965.2,1964.4,2.01431921]
[1772574584702,0.00575702,1965.2,1964.5,2.01431921]
[1772574584993,0.58621905,1965.2,1964.5,2.01431921]
[1772574585296,2.31177291,1965.2,1964.5,2.02003819]
[1772574585498,1.73131088,1965.2,1964.5,2.02003819]
[1772574587891,1.66862613,1966.0,1964.5,2.02003819]
[1772574588097,1.66862613,1965.9,1965.3,1.92166795]
[1772574588891,1.67473552,1965.9,1965.2,1.92166795]
[1772574589196,0.00610939,1965.9,1965.2,1.92166795]
[1772574589395,0.25425,1966.5,1965.2,2.17607795]
[1772574589596,1.65255306,1966.4,1965.2,2.17607795]
[1772574589793,0.57954832,1966.3,1965.4,1.92166795]
[1772574589997,1.6374393,1966.5,1965.6,1.92166795]
[1772574590296,1.6374393,1966.5,1965.6,3.78650147]
[1772574590297,0.00623631,1966.5,1965.6,3.78650147]
[1772574590493,1.67803518,1966.4,1965.7,1.92166795]
[1772574591796,1.67803518,1966.4,1965.3,1.92166795]
[1772574592095,1.64808531,1966.2,1965.3,1.92166795]
[1772574594491,1.64808531,1966.2,1964.9,1.92166795]
[1772574596704,1.64808531,1966.2,1965.1,1.92166795]
[1772574601308,1.4769667,1966.0,1965.1,1.92166795]
[1772574601804,1.46380674,1965.8,1964.9,1.92166795]
[1772574602005,1.46380674,1965.6,1964.6,1.92166795]
[1772574604405,1.43302659,1966.1,1964.8,1.92166795]
[1772574610109,1.43302659,1966.1,1965.0,1.92166795]
[1772574610607,1.36651176,1966.5,1965.3,0.2544]
[1772574610810,1.36651176,1966.5,1965.4,1.92166795]
[1772574613415,1.36651176,1966.5,1965.6,1.92166795]
[1772574620517,1.22879837,1966.3,1965.6,1.92166795]
[1772574625824,0.00623631,1966.5,1965.6,1.92166795]
[1772574626920,1.16058152,1966.8,1965.8,1.75731704]
[1772574628129,1.16501623,1966.8,1965.8,1.75731704]
[1772574628320,1.1549093,1966.6,1965.8,1.75731704]
[1772574633731,1.10980019,1966.7,1966.0,1.75731704]
[1772574633925,1.10980019,1966.7,1966.0,1.76118921]
[1772574634226,1.11309791,1966.6,1966.0,1.76118921]
[1772574639232,1.09738506,1966.4,1966.0,1.76118921]
[1772574639428,1.09738506,1966.4,1966.0,0.00387217]
[1772574639629,1.09738506,1966.4,1966.0,1.76118921]
[1772574645036,1.05189711,1966.0,1965.2,1.75731704]
[1772574645232,2.91450415,1966.0,1965.2,1.75731704]
[1772574645538,1.86260704,1966.0,1965.2,1.75731704]
[1772574646038,1.05176579,1966.1,1965.2,1.75731704]
[1772574646240,1.05176579,1966.1,1965.2,1.76289781]
[1772574649142,2.88465993,1966.0,1965.2,1.76289781]
[1772574651346,1.00792463,1966.3,1965.6,1.63142819]
[1772574651545,1.00792463,1966.4,1965.6,1.63142819]
[1772574652541,0.99993533,1966.5,1965.6,1.63142819]
[1772574653142,0.99287669,1966.6,1965.8,1.63142819]
[1772574653445,0.99287669,1966.6,1965.7,2.11695704]
[1772574653446,4.23927688,1967.1,1966.0,1.88572819]
[1772574653740,0.99717172,1967.2,1966.6,1.63142819]
[1772574653938,1.86260704,1967.4,1966.6,1.63142819]
[1772574653939,0.99019485,1967.3,1966.6,1.63142819]
[1772574654547,0.99378786,1967.3,1966.6,1.63589809]
[1772574655040,2.82316293,1967.2,1966.6,1.63589809]
[1772574656641,0.96055589,1967.2,1966.6,1.63589809]
[1772574657448,0.96055589,1967.2,1966.6,1e-08]
[1772574657649,0.96055589,1967.2,1966.6,1.6314282]
[1772574663454,0.9361775,1967.3,1966.6,1.6314282]
[1772574663755,0.92996414,1967.3,1966.6,1.6314282]
[1772574667550,0.90779013,1967.9,1966.6,1.8856582]
[1772574668644,0.91322497,1967.9,1966.6,1.8856582]
[1772574669354,0.91322497,1967.9,1966.7,1.63142819]
[1772574677059,0.91322497,1967.9,1966.9,1.63142819]
[1772574678459,0.82754646,1967.7,1966.9,1.63142819]
[1772574679359,0.00543484,1967.9,1967.2,1.86053392]
[1772574679561,0.00096496,1967.9,1967.5,1.53844287]
[1772574679763,0.81458109,1968.3,1967.7,1.53844287]
[1772574679961,2.67511501,1968.2,1967.7,1.53844287]
[1772574680567,0.81327292,1968.1,1967.7,1.53844287]
[1772574680765,0.81895178,1968.1,1967.7,1.53844287]
[1772574682557,0.81895178,1968.1,1967.2,8.52153392]
[1772574682558,1.05118234,1968.5,1967.9,1.53844287]
[1772574682764,0.79719234,1968.4,1967.9,1.53844287]
[1772574683765,0.79222511,1968.3,1967.9,1.53844287]
[1772574684468,0.00460978,1968.4,1967.9,1.53844287]
[1772574692576,0.25394,1968.9,1967.9,1.53844287]
[1772574693477,0.25921063,1968.9,1967.9,1.53844287]
[1772574693776,0.74651975,1968.8,1967.9,1.53844287]
[1772574695171,0.00527063,1968.9,1967.9,1.53844287]
[1772574697276,0.00527063,1968.9,1967.9,8.19744287]
[1772574697578,0.00527063,1968.9,1968.0,1.53844287]
[1772574697777,0.74147583,1968.9,1968.0,1.54357008]
[1772574698781,0.71793007,1968.7,1968.0,1.54357008]
[1772574703285,0.68341665,1968.8,1968.0,1.54357008]
[1772574703480,0.68868728,1968.9,1968.0,1.54357008]
[1772574705578,0.00527063,1968.9,1968.0,1.54357008]
[1772574706784,0.65353767,1968.8,1968.0,1.54357008]
[1772574707088,0.65353767,1968.6,1968.0,1.54357008]
[1772574711592,0.83206682,1968.7,1968.0,1.54357008]
[1772574712091,0.57188451,1968.6,1968.0,1.54357008]
[1772574712690,0.57228068,1968.5,1968.0,1.54357008]
[1772574713389,0.57228068,1968.5,1968.0,1.53362704]
[1772574713998,1.56032114,1968.4,1967.9,1.56836109]
[1772574714893,1.56032114,1968.4,1967.9,1.5731859]
[1772574715700,1.56032114,1968.4,1967.9,1e-08]
[1772574716203,1.56032114,1968.4,1967.9,1.5683611]
[1772574717202,1.56032114,1968.2,1967.7,0.8771859]
[1772574717402,1.56032114,1968.2,1967.3,1.56836109]
[1772574718206,1.56032114,1968.2,1967.3,1.57381268]
[1772574720206,1.56032114,1968.3,1967.3,1.57381268]
[1772574721205,1.56032114,1968.3,1967.5,1.56836109]
[1772574721402,1.56032114,1968.7,1967.8,0.25408]
[1772574721605,1.56032114,1968.7,1967.9,1.56836109]
[1772574722502,0.00527063,1968.9,1967.9,1.56836109]
[1772574722806,1.56032114,1968.8,1967.9,1.56836109]
[1772574726512,1.56032114,1968.8,1968.0,1.56836109]
[1772574732315,1.56032114,1968.6,1968.0,1.56836109]
[1772574734518,1.81954177,1968.9,1968.0,1.56836109]
[1772574734722,8.31001912,1968.8,1968.0,1.56836109]
[1772574735017,1.56032114,1968.8,1968.0,1.56836109]
[1772574742321,1.41836081,1968.6,1968.0,1.56836109]
[1772574744819,1.42363144,1968.9,1968.0,1.82241109]
[1772574745023,0.00527063,1968.9,1968.3,1.45410119]
[1772574746519,0.00527063,1968.9,1967.8,1.45410119]
[1772574746520,1.42363144,1968.9,1967.8,1.45410119]
[1772574748625,1.41836081,1968.8,1968.0,1.45410119]
[1772574750126,1.41836081,1968.6,1968.0,1.45410119]
[1772574754028,1.41836081,1968.2,1967.7,1.45410119]
[1772574754430,1.41836081,1968.4,1967.7,1.45410119]
[1772574755726,3.27670659,1968.0,1967.4,1.45410119]
[1772574756129,1.41836081,1968.0,1967.4,1.45410119]
[1772574763540,1.41836081,1967.9,1967.4,1.45410119]
[1772574770647,1.41836081,1967.9,1967.3,6.66345159]
[1772574771049,1.41836081,1967.9,1967.4,1.37445067]
[1772574775148,1.41641954,1968.0,1967.4,1.37445067]
[1772574782352,1.41641954,1968.0,1967.5,1.37445067]
[1772574786754,1.41641954,1968.2,1967.5,1.37445067]
[1772574792650,1.41641954,1967.8,1967.3,1.37990226]
[1772574795858,1.41641954,1968.2,1967.5,1.37445067]
[1772574796055,7.68071533,1968.1,1967.5,1.37445067]
[1772574796358,1.41641954,1968.1,1967.5,1.37445067]
[1772574802166,1.30519375,1967.9,1967.4,1.33440556]
[1772574810369,4.23927688,1968.4,1967.5,1.33440556]
[1772574810570,1.30519375,1968.2,1967.5,1.33440556]
[1772574811171,7.56730202,1968.1,1967.5,1.33440556]
[1772574811472,1.30519375,1968.1,1967.5,1.33440556]
[1772574811876,1.30519375,1967.9,1967.3,1.33985715]
[1772574817676,1.30519375,1968.2,1967.3,1.33985715]
[1772574818471,1.30519375,1968.0,1967.3,1.33985715]
[1772574819875,1.30519375,1968.2,1967.3,1.59398715]
[1772574820075,1.30519375,1968.3,1967.3,1.59398715]
[1772574822475,1.30519375,1968.3,1967.5,1.33440556]
[1772574827372,4.23927688,1968.6,1967.7,1.33440556]
[1772574827579,8.1421,1968.5,1967.7,1.33440556]
[1772574827880,1.30519375,1968.5,1967.7,1.33440556]
[1772574830778,1.30519375,1968.5,1967.9,1.29289676]
[1772574831282,1.30519375,1968.5,1968.0,1.29289676]
[1772574831678,1.30519375,1968.5,1967.8,1.29289676]
[1772574841491,1.35451575,1968.8,1967.8,1.29289676]
[1772574842090,1.35451575,1968.8,1968.0,1.29289676]
[1772574842886,0.00527063,1968.9,1968.2,3.15220177]
[1772574843092,1.35451575,1969.2,1968.4,1.29289676]
[1772574843995,1.35856385,1969.2,1968.4,1.29289676]
[1772574844793,1.35451575,1969.6,1968.8,1.29289676]
[1772574845802,1.35995375,1969.6,1968.8,1.29799989]
[1772574849816,0.005438,1969.6,1968.8,1.29799989]
[1772574850100,3.21382076,1970.2,1969.2,1.29289676]
[1772574850306,1.35451575,1970.1,1969.2,1.29289676]
[1772574850906,1.35849507,1970.1,1969.2,1.29289676]
[1772574851705,1.35451575,1969.9,1969.0,1.29289676]
[1772574851903,1.35451575,1969.8,1968.9,1.29289676]
[1772574854005,1.35451575,1969.8,1969.1,1.29289676]
[1772574854200,0.00397932,1970.1,1969.1,1.29289676]
[1772574854201,1.35451575,1970.0,1969.1,1.29289676]
[1772574860417,1.28954936,1969.7,1968.9,1.22863614]
[1772574861710,1.28954936,1969.7,1968.9,1.48256614]
[1772574866117,1.28954936,1970.0,1968.9,1.48256614]
[1772574867515,1.28954936,1970.0,1969.1,1.22863614]
[1772574867721,1.28954936,1970.0,1969.3,1.22863614]
[1772574868125,1.28954936,1970.7,1969.8,1.22863614]
[1772574868414,1.28954936,1970.7,1969.9,1.22863614]
[1772574869114,1.29526593,1970.7,1969.9,1.22863614]
[1772574874224,1.29526593,1970.7,1969.5,1.22863614]
[1772574874920,1.28954936,1970.5,1969.5,1.22863614]
[1772574876717,1.28954936,1970.3,1969.3,1.22863614]
[1772574877023,0.25374,1970.4,1968.9,1.22863614]
[1772574877024,1.28954936,1970.1,1968.9,1.22863614]
[1772574878028,1.28954936,1969.9,1968.9,1.22863614]
[1772574878225,1.28954936,1969.7,1968.8,1.23373927]
[1772574880626,0.25382,1969.8,1968.8,1.23373927]
[1772574880627,1.28954936,1969.5,1968.8,0.00510313]
[1772574883224,1.28954936,1969.3,1968.1,1.22863614]
[1772574884126,1.28954936,1969.1,1968.1,1.23511767]
[1772574893531,1.20884171,1969.3,1968.5,1.23177974]
[1772574893932,1.20229903,1969.9,1968.5,1.23177974]
[1772574894535,1.20229903,1969.6,1968.8,1.23177974]
[1772574894736,1.20229903,1969.2,1968.4,1.23177974]
[1772574894936,1.20693689,1969.2,1968.4,1.23177974]
[1772574895239,1.20229903,1969.0,1968.4,1.23177974]
[1772574897532,0.00463786,1969.2,1968.6,1.23177974]
[1772574901243,1.20693689,1969.2,1968.1,0.26052153]
[1772574901539,1.20693689,1969.2,1968.2,1.23177974]
[1772574902737,1.20693689,1969.2,1968.4,1.23177974]
[1772574902946,0.00463786,1969.2,1968.4,1.23177974]
[1772574903341,1.20693689,1969.2,1968.4,1.23177974]
[1772574903841,0.00463786,1969.2,1968.4,1.23177974]
[1772574907544,1.20693689,1969.2,1968.4,1.23177974]
[1772574909350,0.00463786,1969.2,1968.6,1.23177974]
[1772574909551,1.20229903,1969.4,1968.6,1.23177974]
[1772574910453,1.20677659,1969.4,1968.6,1.23177974]
[1772574915858,1.20677659,1969.4,1968.8,1.23177974]
[1772574917751,1.20229903,1969.7,1968.8,1.23177974]
[1772574917950,1.17522725,1969.8,1969.0,1.25583423]
[1772574918153,1.17522725,1970.0,1969.2,1.25583423]
[1772574918454,1.17522725,1970.0,1969.4,1.25583423]
[1772574918855,1.17922223,1970.0,1969.4,1.25583423]
[1772574919357,1.17486008,1969.8,1969.4,1.25583423]
[1772574922364,1.17885506,1970.0,1969.4,1.25583423]
[1772574929566,0.00399498,1970.0,1969.4,1.25583423]
[1772574929962,0.00399498,1970.0,1969.4,1.50970423]
[1772574931670,1.17486008,1970.3,1969.4,1.50970423]
[1772574932769,1.17874982,1970.3,1969.4,1.50970423]
[1772574932967,0.00388974,1970.3,1969.4,1.50970423]
[1772574935170,1.17874982,1970.3,1969.3,1.27013405]
[1772574936968,1.17874982,1970.3,1969.3,1.52401405]
[1772574939769,0.00388974,1970.3,1969.8,1.27013405]
[1772574939969,0.00388974,1970.3,1969.8,1.27530997]
[1772574940467,1.17486008,1970.5,1969.8,1.27530997]
[1772574941267,1.18130181,1970.5,1969.8,1.27530997]
[1772574948178,1.18130181,1970.5,1969.8,1.27530997]
[1772574949481,1.18130181,1970.5,1970.0,1.24556955]
[1772574954186,0.00644173,1970.5,1970.0,1.24556955]
[1772574955786,1.26677926,1970.5,1970.0,1.24556955]
[1772574958285,1.26677926,1970.5,1969.8,0.00517592]
[1772574958589,1.26677926,1970.5,1969.9,1.24556955]
[1772574959090,0.00644173,1970.5,1970.1,1.24556955]
[1772574959385,1.26033753,1970.7,1970.1,1.24556955]
[1772574959690,1.26033753,1970.9,1970.3,1.24556955]
[1772574960288,1.26483372,1970.9,1969.9,1.24556955]
[1772574961087,1.85471291,1971.1,1969.9,1.24556955]
[1772574961295,1.26033753,1971.8,1970.9,1.24556955]
[1772574961593,1.26033753,1971.6,1970.9,1.24556955]
[1772574962096,1.26492212,1971.6,1970.5,7.93821906]
[1772574962287,1.26492212,1971.6,1970.6,1.24556955]
[1772574965494,1.26033753,1971.2,1970.2,1.24556955]
[1772574965789,1.26033753,1970.9,1970.2,1.24556955]
[1772574966497,1.26033753,1970.9,1969.9,1.24556955]
[1772574967397,0.25363,1971.3,1969.8,0.00517592]
[1772574967398,1.51403753,1970.7,1969.8,0.00517592]
[1772574967699,1.26033753,1970.5,1969.8,0.00517592]
[1772574969694,1.26033753,1970.5,1969.5,1.24556955]
[1772574970695,1.26033753,1970.5,1969.5,1.24970448]
[1772574976099,1.26033753,1970.5,1969.7,1.24556955]
[1772574985204,6.651,1971.0,1969.5,1.26787884]
[1772574985205,1.17088284,1970.3,1969.5,1.26787884]
[1772574985603,1.17088284,1970.3,1969.5,0.00413493]
[1772574987607,1.17088284,1970.1,1969.2,1.26374391]
[1772574987807,1.17088284,1969.9,1969.0,1.26374391]
[1772574988705,1.1758409,1969.9,1969.0,1.26822465]
[1772574992811,1.17088284,1969.7,1969.0,0.00448074]
[1772574993109,1.17088284,1969.7,1968.6,1.26374391]
[1772574993110,1.17088284,1969.5,1968.6,1.26374391]
[1772574993909,1.17088284,1969.5,1968.6,1.26770262]
[1772575008521,1.17088284,1969.5,1968.9,1.16752712]
[1772575013824,1.22214708,1969.7,1968.9,1.16752712]
[1772575014025,1.22214708,1969.7,1969.1,1.16752712]
[1772575017930,1.22214708,1969.5,1969.0,1.16752712]
[1772575025933,1.22214708,1969.6,1969.1,1.16752712]
[1772575034945,1.22214708,1969.8,1969.1,1.16752712]
[1772575035243,12.77353539,1969.9,1969.1,1.16752712]
[1772575035244,7.68786998,1969.7,1969.1,1.16752712]
[1772575035443,1.22214708,1969.6,1969.1,1.16752712]
[1772575037245,1.22214708,1969.6,1969.0,3.0243604]
[1772575037447,1.22214708,1969.4,1968.9,1.16752712]
[1772575043245,1.85683328,1969.7,1968.9,1.16752712]
[1772575043451,1.18471325,1969.8,1969.1,1.21305738]
[1772575043752,6.46984883,1969.7,1969.1,1.21305738]
[1772575043952,5.9159681,1969.7,1969.1,1.21305738]
[1772575044251,7.10068135,1969.7,1969.1,1.21305738]
[1772575044445,1.18967131,1969.9,1969.1,1.21305738]
[1772575044654,6.46954585,1969.8,1969.3,1.21305738]
[1772575044953,0.55385446,1969.7,1969.3,1.21305738]
[1772575045253,5.91528746,1969.8,1969.3,1.21305738]
[1772575045850,1.18471325,1969.8,1969.3,1.21305738]
[1772575046248,1.18967131,1969.9,1969.3,1.21305738]
[1772575047756,0.00495806,1969.9,1969.3,1.21305738]
[1772575048758,0.00495806,1969.9,1969.2,1.85683328]
[1772575048759,0.00495806,1969.9,1969.5,1.21305738]
[1772575050852,1.18967131,1969.9,1969.5,1.21305738]
[1772575057669,0.00495806,1969.9,1969.5,1.21305738]
[1772575061070,1.18967131,1969.9,1969.5,1.21305738]
[1772575065171,1.18471325,1970.3,1969.5,1.21305738]
[1772575065475,8.23400702,1970.5,1969.7,1.21305738]
[1772575065476,1.18471325,1970.5,1969.7,1.21305738]
[1772575066176,1.19017098,1970.5,1969.7,1.21305738]
[1772575074679,1.19192101,1970.3,1969.7,1.21305738]
[1772575074880,1.19192101,1970.3,1969.5,1.21415387]
[1772575076884,1.19737874,1970.5,1969.5,1.46800387]
[1772575077084,1.19737874,1970.5,1969.6,1.21415387]
[1772575078083,0.00545773,1970.5,1969.8,1.21415387]
[1772575078284,1.19192101,1970.6,1969.8,1.21415387]
[1772575079286,1.19838998,1970.6,1969.8,1.21415387]
[1772575083986,1.19192101,1970.4,1969.8,1.21415387]
[1772575084184,1.19192101,1970.4,1969.5,7.93821906]
[1772575084185,1.19192101,1970.4,1969.6,1.21415387]
[1772575084487,1.19192101,1970.3,1969.6,1.21415387]
[1772575085578,1.19192101,1970.3,1969.5,1.21415387]
[1772575099699,0.55280656,1970.2,1969.5,1.21415387]
[1772575099904,1.11652909,1970.1,1969.5,1.21415387]
[1772575106404,1.11652909,1969.9,1969.3,1.13071873]
[1772575106705,1.11652909,1969.8,1969.3,1.13071873]
[1772575107808,1.11652909,1969.8,1968.8,7.93821906]
[1772575107809,1.11652909,1969.8,1969.0,1.13071873]
[1772575113115,1.11652909,1969.6,1969.0,1.13071873]
[1772575114512,2.97367717,1969.8,1969.0,1.13071873]
[1772575115318,1.11652909,1969.7,1969.0,1.13071873]
[1772575116215,1.11652909,1969.5,1969.0,1.13071873]
[1772575121723,2.97367717,1969.6,1969.0,1.13071873]
[1772575122426,1.11652909,1969.5,1969.0,1.13071873]
[1772575123623,1.11652909,1969.5,1968.7,1.13071873]
[1772575123829,0.25384,1969.7,1968.7,1.13071873]
[1772575123830,2.97367717,1969.2,1968.7,1.13071873]
[1772575124033,2.97781847,1969.2,1968.7,1.13071873]
[1772575124233,1.12067039,1969.2,1968.7,1.13071873]
[1772575125533,2.97367717,1968.8,1968.3,1.13071873]
[1772575126633,1.85714808,1968.8,1968.3,1.13535013]
[1772575127133,2.97367717,1968.8,1968.3,1.13535013]
[1772575128534,1.85714808,1968.8,1968.3,1.13535013]
[1772575130630,1.08899734,1969.0,1968.3,1.0768875]
[1772575131236,1.08899734,1969.1,1968.4,1.0768875]
[1772575131736,2.94614542,1968.8,1968.4,1.0804897]
[1772575131936,2.94614542,1969.0,1968.4,1.0804897]
[1772575132128,0.0041413,1969.2,1968.4,1.0804897]
[1772575132332,0.0041413,1969.2,1968.6,1.0768875]
[1772575132835,1.08899734,1969.1,1968.6,1.0768875]
[1772575133434,1.09313864,1969.2,1968.6,1.0768875]
[1772575133631,0.0041413,1969.2,1968.6,2.93403558]
[1772575133837,0.0041413,1969.2,1968.7,1.0768875]
[1772575134034,1.09313864,1969.2,1968.7,1.0768875]
[1772575134633,1.09313864,1969.2,1968.5,1.0768875]
[1772575134839,1.08899734,1969.1,1968.5,1.0768875]
[1772575137037,1.86128938,1969.2,1968.5,1.0768875]
[1772575137038,1.08899734,1968.9,1968.5,1.0768875]
[1772575137631,1.08899734,1969.1,1968.5,1.0768875]
[1772575138545,0.0041413,1969.2,1968.5,2.93403558]
[1772575138842,0.0041413,1969.2,1968.6,1.0768875]
[1772575141042,1.09313864,1969.2,1968.6,1.0768875]
[1772575145341,0.0041413,1969.2,1968.6,1.0768875]
[1772575145647,0.0041413,1969.2,1968.8,1.0768875]
[1772575150145,7.74399734,1969.6,1968.8,1.0768875]
[1772575150444,6.53212353,1969.5,1968.8,1.0768875]
[1772575150649,7.06836583,1969.5,1968.8,1.0768875]
[1772575150850,1.08899734,1969.5,1968.8,1.0768875]
[1772575151251,1.09328963,1969.5,1968.8,1.0768875]
[1772575152050,1.08899734,1969.4,1968.8,1.0768875]
[1772575159057,1.08899734,1969.4,1968.6,1.08786062]
[1772575160658,1.15558692,1969.2,1968.6,1.08786062]
[1772575170173,1.15558692,1968.8,1968.5,1.08786062]
[1772575171169,1.15558692,1968.8,1968.4,0.0036022]
[1772575171170,1.15558692,1968.7,1968.4,0.00164121]
[1772575171370,1.15558692,1968.7,1968.1,1.08786062]
[1772575172260,1.15558692,1968.7,1968.1,1.09271036]
[1772575172465,1.15558692,1969.0,1968.3,1.08786062]
[1772575193886,1.08110305,1968.7,1968.1,1.08538492]
[1772575199395,0.25394,1968.9,1968.1,1.08538492]
[1772575199692,1.08110305,1968.8,1968.1,1.08538492]
[1772575200797,1.08110305,1969.0,1968.1,1.08538492]
[1772575201297,6.656,1969.1,1968.2,0.25403]
[1772575201496,6.656,1969.1,1968.3,1.08053518]
[1772575201794,1.08110305,1969.1,1968.3,1.08053518]
[1772575201995,4.25949871,1969.4,1968.3,1.08053518]
[1772575201996,1.08110305,1969.2,1968.3,1.08053518]
[1772575202395,1.08110305,1969.3,1968.5,1.08053518]
[1772575203901,1.08539534,1969.5,1968.7,1.08053518]
[1772575204102,1.08110305,1969.8,1968.9,1.08053518]
[1772575204897,4.25949871,1970.1,1968.9,1.08053518]
[1772575205099,1.08110305,1969.9,1969.1,1.08053518]
[1772575206196,1.08734922,1970.1,1969.1,1.08053518]
[1772575207400,1.08110305,1969.9,1969.1,1.08053518]
[1772575208697,6.66124617,1970.1,1968.9,1.08053518]
[1772575208698,1.08110305,1969.6,1968.9,1.08053518]
[1772575210201,1.08110305,1969.6,1968.7,1.08053518]
[1772575210598,1.85802574,1969.5,1968.7,1.08053518]
[1772575210798,1.08110305,1969.4,1968.7,1.08053518]
[1772575211103,1.08110305,1969.1,1968.2,1.08053518]
[1772575212803,1.08110305,1968.8,1968.1,0.00484974]
[1772575213502,1.08110305,1968.8,1968.1,1.08538492]
[1772575222713,0.25391,1969.1,1968.1,1.08538492]
[1772575222914,1.04138588,1969.0,1968.1,1.08538492]
[1772575225316,1.04138588,1969.4,1968.1,1.08538492]
[1772575225517,1.04138588,1969.2,1968.1,1.33941492]
[1772575227212,1.04138588,1969.4,1968.1,1.33941492]
[1772575227417,1.29524588,1969.5,1968.1,1.33941492]
[1772575227621,1.29524588,1969.5,1968.4,0.25399]
[1772575227812,1.04138588,1969.5,1968.5,1.03938988]
[1772575229420,1.04138588,1969.5,1968.7,1.03938988]
[1772575232023,1.04138588,1969.8,1968.7,1.03938988]
[1772575232428,1.04138588,1969.8,1968.9,1.03938988]
[1772575242533,1.04763205,1970.1,1969.2,0.2539]
[1772575242831,1.04763205,1970.1,1969.3,1.03938988]
[1772575243030,0.00624617,1970.1,1969.5,1.03938988]
[1772575243231,0.00624617,1970.1,1969.5,1.0441159]
[1772575244532,1.04138588,1970.6,1969.5,1.0441159]
[1772575245730,1.04138588,1970.4,1969.5,1.0441159]
[1772575246124,1.04138588,1970.2,1969.5,1.0441159]
[1772575257435,1.04138588,1970.2,1969.5,0.00472602]
[1772575258136,0.92173569,1970.0,1969.5,0.98691861]
[1772575260440,0.92173569,1970.0,1969.5,0.00472602]
[1772575261542,0.92173569,1970.0,1969.5,0.98691861]
[1772575264041,0.92173569,1970.0,1969.5,0.00472602]
[1772575264443,2.77814864,1970.0,1969.5,0.00472602]
[1772575265042,0.92173569,1969.9,1969.5,0.00472602]
[1772575270237,0.92173569,1969.9,1969.5,0.98691861]
[1772575273147,0.92173569,1969.9,1969.5,0.00472602]
[1772575273443,1.85641295,1969.6,1969.1,7.94109761]
[1772575273650,0.92173569,1969.3,1968.9,0.98219259]
[1772575274648,0.92173569,1969.3,1968.9,0.98701102]
[1772575275350,0.92173569,1969.3,1968.5,0.98219259]
[1772575276445,0.92173569,1969.3,1968.5,0.98741738]
[1772575276858,0.92173569,1968.9,1968.5,0.00522479]
[1772575277051,0.92724835,1968.9,1968.3,0.98219259]
[1772575277945,0.92724835,1968.9,1968.3,0.98734538]
[1772575278546,0.92724835,1968.9,1968.3,0.00515279]
[1772575280752,0.92724835,1968.9,1968.3,0.86820418]
[1772575280956,0.92724835,1968.9,1967.9,0.86305139]
[1772575282052,0.00551266,1968.9,1968.3,0.86305139]
[1772575282354,0.88045315,1969.1,1968.3,0.86305139]
[1772575283150,0.88654351,1969.1,1968.3,0.86305139]
[1772575283954,0.00609036,1969.1,1968.3,0.86305139]
[1772575286056,0.88654351,1969.1,1968.3,0.86305139]
[1772575292568,0.88654351,1969.1,1968.0,0.86305139]
[1772575300675,0.88654351,1969.1,1968.2,0.86305139]
[1772575302076,0.88654351,1969.1,1968.4,0.86305139]
[1772575307979,0.00609036,1969.1,1968.6,0.8690401]
[1772575311383,0.87698818,1969.4,1968.7,0.8690401]
[1772575312387,0.88244184,1969.4,1968.7,0.8690401]
[1772575326386,0.88244184,1969.4,1968.6,0.8690401]
[1772575329200,0.87698818,1969.1,1968.2,7.93580624]
[1772575329495,0.87698818,1969.1,1968.2,0.8690401]
[1772575329697,0.87698818,1968.9,1968.2,0.8690401]
[1772575329898,0.87698818,1968.9,1968.0,0.8690401]
[1772575329899,0.87698818,1968.8,1968.0,0.8690401]
[1772575339707,0.84546562,1969.1,1968.2,0.81675071]
[1772575340307,0.84546562,1969.1,1968.4,0.81675071]
[1772575340604,0.84546562,1969.3,1968.6,0.81675071]
[1772575342207,0.00545366,1969.4,1968.6,0.81675071]
[1772575342409,0.84546562,1970.1,1968.9,0.81675071]
[1772575342599,0.84546562,1970.1,1969.1,0.81675071]
[1772575343506,0.85053971,1970.1,1969.1,0.81675071]
[1772575343902,0.84546562,1970.0,1969.1,0.81675071]
[1772575344107,0.85053971,1970.1,1969.3,0.81675071]
[1772575344309,0.85053971,1970.1,1969.3,0.82173145]
[1772575345402,0.84546562,1970.7,1969.6,0.81675071]
[1772575345606,0.84546562,1970.7,1969.8,0.81675071]
[1772575346109,0.84546562,1971.0,1969.9,0.81675071]
[1772575346309,0.85111709,1971.0,1969.9,0.81675071]
[1772575347110,0.85111709,1971.0,1970.1,0.81675071]
[1772575347306,0.85111709,1971.0,1970.3,0.81675071]
[1772575347608,0.84546562,1971.2,1970.5,0.81675071]
[1772575347903,4.23823908,1972.0,1970.6,0.25372]
[1772575347904,0.84546562,1972.0,1970.6,0.25372]
[1772575348102,6.38924807,1972.6,1970.6,0.25372]
[1772575348103,5.0837047,1972.6,1971.2,0.81675071]
[1772575348309,0.84546562,1972.7,1971.4,0.81675071]
[1772575348500,0.84546562,1972.5,1971.4,0.81675071]
[1772575348704,0.84959169,1972.5,1971.4,0.82255084]
[1772575349909,0.84959169,1972.5,1971.6,0.81675071]
[1772575350109,0.84546562,1972.7,1971.8,0.81675071]
[1772575350308,0.89455869,1972.8,1972.0,0.81675071]
[1772575350508,0.84546562,1972.7,1972.0,0.81675071]
[1772575350709,0.89455869,1972.8,1972.0,0.81675071]
[1772575350912,0.84546562,1973.2,1972.2,0.81675071]
[1772575351211,0.84546562,1974.6,1973.2,0.81675071]
[1772575351508,0.84546562,1974.5,1973.1,0.81675071]
[1772575351915,0.84546562,1974.4,1972.9,7.64475071]
[1772575352115,0.85062596,1974.4,1973.0,0.81675071]